Cogmind - Beta 15 *** ADVENTURER MODE // 2025.06.09 @ 21:23:49 Player: triibiis Result: Destroyed by S-10 Pest with Light Assault Rifle Performance ------------- Evolutions (1) 500 Regions Visited (3) 600 Robots Destroyed (25) 125 Value Destroyed (470) 470 Prototype IDs (4) 80 Alien Tech Used (0) 0 Bonus (7) 7 TOTAL SCORE: 1782 Bonus ------- Follower Combat Kills 7 Cogmind --------- Core Integrity 0/400 Matter 85/300 Energy 99/100 System Corruption 1% Temperature Cool (0) Movement Core (50) Location -9/Materials Parts ------- > --- POWER (1) -------- (None) > --- PROPULSION (4) --- (None) > --- UTILITY (2) ------ Terrain Scan Processor > --- WEAPON (2) ------- (None) > --- INVENTORY (5) ---- (None) Peak State ------------ > --- POWER ------------ Light Ion Engine > --- PROPULSION ------- Flight Unit Flight Unit Flight Unit Flight Unit > --- UTILITY ---------- Sensor Array Terrain Scan Processor > --- WEAPON ----------- Improved Light Cannon Rocket Launcher > --- INVENTORY -------- Light Cannon [Rating: 12] Favorites ----------- Power Ion Engine Engine Ion Engine Propulsion Flight Unit Treads Light Treads Wheel Compact Wheel Hover Unit Hover Unit Flight Unit Flight Unit Utility Small Storage Unit Device Sensor Array Storage Small Storage Unit Processor Terrain Scan Processor Weapon Light Cannon Energy Gun Small Laser Ballistic Gun Light Assault Rifle Ballistic Cannon Light Cannon Launcher Rocket Launcher Special Melee Weapon Datajack Build | -11 -10 -10 -9 ------- Run | Yrd Mat Min Mat Slots Evolved 2 | . . . 2 Power . | . . . . Propulsion 2 | . . . 2 Utility . | . . . . Weapon . | . . . . Parts Attached 29 | 6 13 . 10 Power 3 | 1 2 . . Engine 3 | 1 2 . . Core . | . . . . Reactor . | . . . . Propulsion 12 | 2 6 . 4 Treads 3 | . 1 . 2 Leg . | . . . . Wheel 2 | 2 . . . Hover 1 | . 1 . . Flight 6 | . 4 . 2 Utility 4 | 1 . . 3 Device 2 | . . . 2 Storage 1 | 1 . . . Processor 1 | . . . 1 Hackware . | . . . . Protection . | . . . . Artifact . | . . . . Weapon 10 | 2 5 . 3 Energy Gun 1 | . 1 . . Energy Cannon . | . . . . Ballistic Gun 2 | 2 . . . Ballistic Cannon 3 | . 2 . 1 Launcher 3 | . 2 . 1 Special Weapon . | . . . . Impact Weapon . | . . . . Slashing Weapon . | . . . . Piercing Weapon . | . . . . Special Melee Weapon 1 | . . . 1 Unidentified Prototypes . | . . . . Parts Lost 13 | . 2 . 11 Power 1 | . . . 1 Propulsion 7 | . 1 . 6 Utility 1 | . . . 1 Weapon 4 | . 1 . 3 Highest Loss Streak 10 | . 2 . 10 To Critical Strikes . | . . . . Average Backups 2 | 2 3 1 . Power 1 | . 1 . . Propulsion . | 1 . 1 . Utility . | . . . . Weapon . | . . . . Tool/Special . | . . . . Unused Backups 2 | . 2 . . Power . | . . . . Propulsion 1 | . 1 . . Utility . | . . . . Weapon 1 | . 1 . . Tool/Special . | . . . . Average Slot Usage (%) 73 | . 72 71 75 Engine 12 | . 13 14 8 Treads 7 | . 9 . 3 Wheel 1 | . 2 . . Flight 13 | . 7 28 30 Device 1 | . . . 9 Storage 7 | . 10 . . Processor 1 | . . . 5 Energy Gun 3 | . 3 14 1 Ballistic Cannon 19 | . 22 14 9 Launcher 1 | . . . 2 Peak Build Rating 12 | 6 6 5 12 Average Rating 5 | 4 5 5 8 On Entrance 4 | . 6 5 5 Naked Turns . | . . . . Heaviest Build 16 | 13 16 7 12 Greatest Support 46 | 32 32 8 46 Greatest Overweight (x) 3 | 2 3 . 1 Average Overweight (x) . | . . . . Largest Inventory Capacity 8 | 8 8 5 5 Average Capacity 6 | 6 7 5 5 Most Carried 6 | 5 6 2 2 Average Carried 2 | 2 3 1 . Final Capacity 8 | 8 5 5 5 Final Carried 4 | 4 1 2 . Class Distribution -------------------- 90% | Mutant 9% | Scavenger-Sprinter Dominant Class ---------------- Mutant | -10/Materials Mutant | -10/Mines Scavenger-Sprinter | -9/Materials Resources | -11 -10 -10 -9 ----------- Run | Yrd Mat Min Mat Matter Collected 631 | 239 255 70 67 Remotely . | . . . . Salvage Created 588 | . 333 28 227 Parts 42 | . 23 3 16 Haulers Intercepted 1 | . . . 1 Recyclers Shooed . | . . . . Parts Field Recycled . | . . . . Retrieved Matter . | . . . . Parts Self-Destructed . | . . . . Prevented . | . . . . Kills | -11 -10 -10 -9 ------- Run | Yrd Mat Min Mat Combat Hostiles Destroyed 17 | . 11 2 4 Guns 1 | . . 1 . Cannons 13 | . 9 1 3 AOE 3 | . 2 . 1 Classes Destroyed 9 | . 4 . 5 Worker 2 | . 1 . 1 Builder 1 | . . . 1 Hauler 1 | . . . 1 Recycler 2 | . 2 . . Mechanic 1 | . . . 1 Watcher 1 | . . . 1 Swarmer 8 | . 6 2 . Grunt 8 | . 5 . 3 Sentry 1 | . . . 1 Best Kill Streak 7 | . 7 2 4 Combat Bots Only 4 | . 4 2 3 Max Kills in Single Turn 3 | . 3 1 2 Gunslinging . | . . . . Exploded 2 | . 2 . 1 Melee . | . . . . Uniques/NPCs Destroyed . | . . . . Combat | -11 -10 -10 -9 -------- Run | Yrd Mat Min Mat Hostile Shots Fired 306 | . 63 10 233 Missed 98 | . 14 6 78 Hits 208 | . 49 4 155 Projectile 208 | . 49 4 155 Critical Strikes 2 | . . . 2 Damage Taken 1501 | . 379 32 1090 Core 438 | . 25 10 403 Absorbed by Shields . | . . . . Ignored by Resistances 485 | . 124 11 350 Core Remaining (%) 93 | 100 . 86 . Volleys Fired 51 | . 28 4 19 Largest 2 | . 2 2 2 Hottest 70 | . 70 70 66 Shots Fired 84 | . 55 7 22 Gun 6 | . 3 3 . Cannon 72 | . 50 4 18 Launcher 6 | . 2 . 4 Special . | . . . . Kinetic 72 | . 50 4 18 Thermal 6 | . 3 3 . Explosive 6 | . 2 . 4 Electromagnetic . | . . . . Robot Hit Streak 13 | . 11 1 13 Robot Miss Streak 6 | . 6 1 2 Penetration Max . | . . . . Secondary Targets . | . . . . Shots Hit Robots 58 | . 33 3 22 Core Hits 31 | . 18 2 11 Critical Kills . | . . . . Critical Parts Destroyed . | . . . . Critical Strikes 2 | . 1 . 1 Blast 2 | . 1 . 1 Melee Attacks 5 | . . . 5 Impact . | . . . . Slashing . | . . . . Piercing . | . . . . Sneak Attacks 3 | . . . 3 Combat Hostiles . | . . . . Follow-up Attacks . | . . . . Damage Inflicted 1323 | . 734 36 553 Guns 31 | . 10 21 . Cannons 814 | . 493 15 306 Explosions 442 | . 222 . 220 Melee . | . . . . Ramming 36 | . 9 . 27 Kinetic 814 | . 493 15 306 Thermal 31 | . 10 21 . Explosive 442 | . 222 . 220 Electromagnetic . | . . . . Impact . | . . . . Slashing . | . . . . Piercing . | . . . . Highest Corruption 1 | . 1 1 1 Average Corruption 1 | . 1 1 1 Corruption Purged . | . . . . Corruption Blocked . | . . . . Effects 9 | . 4 . 5 Message Errors 2 | . 1 . 1 Matter Fused 4 | . 1 . 3 Heat Flow Errors 1 | . 1 . . Energy Discharges 1 | . 1 . . Weapon Failures 1 | . . . 1 Overload Shots . | . . . . Overflow Damage 38 | . . . 38 Projectiles 21 | . . . 21 Explosions 17 | . . . 17 Melee . | . . . . Knockbacks 19 | . 13 . 6 Impact 2 | . 1 . 1 Kinetic 16 | . 11 . 5 Secondary 1 | . 1 . . Self-Inflicted Damage 88 | . 21 . 67 Shots 3 | . 1 . 2 Rammed 16 | . 2 . 14 Targets Rammed 16 | . 2 . 14 Kicked . | . . . . Crushed . | . . . . Highest Temperature 106 | . 106 24 33 Average Temperature 20 | . 23 10 13 Received Heat Transfer 234 | . 132 9 93 Siege Activations . | . . . . Martial Activations . | . . . . Shielding Activations . | . . . . Robots Disrupted . | . . . . Combat Hostiles . | . . . . Robots Corrupted . | . . . . Combat Hostiles . | . . . . Parts Fried . | . . . . Impact Corruptions . | . . . . Robots Melted . | . . . . Combat Hostiles . | . . . . Parts Melted . | . . . . Heat Transferred 75 | . 25 50 . Parts Sabotaged . | . . . . Parts Stolen . | . . . . Parts Stripped . | . . . . Power Chain Reactions . | . . . . Alert | -11 -10 -10 -9 ------- Run | Yrd Mat Min Mat Maximum Alert Level . | . . . . Low Security (%) 100 | 100 100 100 100 Level 1 . | . . . . Level 2 . | . . . . Level 3 . | . . . . Level 4 . | . . . . Level 5 . | . . . . High Security . | . . . . Max Security . | . . . . Peak Influence 116 | . 115 79 116 Initial 25 | . . . 25 Average 28 | . 28 12 48 Influence Increases 660 | . 399 89 172 Destroy 0b10 Robot/C 360 | . 220 60 80 Destroy 0b10 Robot/NC 40 | . 15 . 25 Destroy Leader 84 | . 50 10 24 Allied During Kill 4 | . . 4 . Successful Hack 28 | . 28 . . Disable Machine 9 | . 9 . . Destroy Structure 45 | . 17 . 28 Lose Combat Pursuer 90 | . 60 15 15 Influence Decreases 660 | . 399 10 251 Entered New Map 54 | . . . 54 Time Decay 506 | . 379 10 117 Lost Part 100 | . 20 . 80 Squads Dispatched 4 | . 2 . 2 Investigation 4 | . 2 . 2 Extermination . | . . . . Reinforcement . | . . . . Assault . | . . . . Garrison . | . . . . Intercept . | . . . . Searches Triggered . | . . . . Construction Impeded . | . . . . Haulers Reinforced . | . . . . Active Scanning Responses . | . . . . Cargo Convoy Interrupts . | . . . . Stealth | -11 -10 -10 -9 --------- Run | Yrd Mat Min Mat Distress Signals 5 | . 2 . 3 Communications Jammed . | . . . . Distress Signals . | . . . . Times Spotted 43 | . 19 4 20 Peak Tracking Total 14 | . 6 3 14 Tactical Retreats 6 | . 4 1 1 Traps | -11 -10 -10 -9 ------- Run | Yrd Mat Min Mat Traps Triggered 1 | . 1 . . Indirectly . | . . . . Trap Hack Attempts . | . . . . Triggered . | . . . . Disarmed . | . . . . Reprogrammed 2 | . 2 . . Reused . | . . . . Traps Extracted . | . . . . Installed . | . . . . Triggered . | . . . . Machines | -11 -10 -10 -9 ---------- Run | Yrd Mat Min Mat Machines Disabled 1 | . 1 . . Max in Single Turn 1 | . 1 . . Machines Repaired . | . . . . Machines Dismantled . | . . . . Machines Sabotaged . | . . . . Overloaded Fab Kills . | . . . . Hacking | -11 -10 -10 -9 --------- Run | Yrd Mat Min Mat Machines Accessed 5 | . 3 . 2 Terminals 5 | . 3 . 2 Fabricators . | . . . . Repair Stations . | . . . . Recycling Units . | . . . . Scanalyzers . | . . . . Garrison Access . | . . . . Total Hacks 24 | . 20 . 4 Successful 11 | . 11 . . Failed 13 | . 9 . 4 Catastrophic 3 | . 1 . 2 Database Lockouts . | . . . . Manual 13 | . 9 . 4 Terminals 24 | . 20 . 4 Fabricators . | . . . . Repair Stations . | . . . . Recycling Units . | . . . . Scanalyzers . | . . . . Garrison Access . | . . . . Terminal Hacks 11 | . 11 . . Record 1 | . 1 . . Prototype ID Bank 3 | . 3 . . Level Access Points 1 | . 1 . . Branch Access Points 1 | . 1 . . Emergency Access Points 1 | . 1 . . Terminal Index 1 | . 1 . . Alert Level 1 | . 1 . . Reprogram Traps 1 | . 1 . . Hauler Manifests 1 | . 1 . . Fabricator Hacks . | . . . . Repair Station Hacks . | . . . . Recycling Unit Hacks . | . . . . Scanalyzer . | . . . . Garrison Access Hacks . | . . . . Unauthorized Hacks . | . . . . Terminals . | . . . . Fabricators . | . . . . Repair Stations . | . . . . Recycling Units . | . . . . Scanalyzers . | . . . . Garrison Access . | . . . . Data Cores Recovered . | . . . . Used . | . . . . Hacking Detections 5 | . 3 . 2 Full Trace Events 5 | . 3 . 2 Feedback Events 1 | . . . 1 Corruption 1 | . . . 1 Feedback Blocked . | . . . . Robot Schematics Acquired . | . . . . Robots Built . | . . . . Authchips . | . . . . Time . | . . . . Total Robot Build Rating . | . . . . Part Schematics Acquired . | . . . . Parts Built . | . . . . Authchips . | . . . . Time . | . . . . Total Part Build Rating . | . . . . Parts Repaired . | . . . . Time . | . . . . Parts Recycled . | . . . . Recycled Matter . | . . . . Retrieved Matter . | . . . . Retrieved Components . | . . . . Parts Scanalyzed . | . . . . Part Schematics Acquired . | . . . . Parts Damaged . | . . . . Bothacking | -11 -10 -10 -9 ------------ Run | Yrd Mat Min Mat Used RIF Installer . | . . . . Robots Hacked 1 | . . . 1 Non-combat 1 | . . . 1 Combat . | . . . . Robot Hacks Applied 3 | . . . 3 parse_system 1 | . . . 1 no_distress 1 | . . . 1 find_station 1 | . . . 1 Relay Couplers Released . | . . . . Fabnet Peak Effective % . | . . . . Robots Rewired . | . . . . Allies Hacked . | . . . . Hacks Repelled . | . . . . Allies | -11 -10 -10 -9 -------- Run | Yrd Mat Min Mat Total Allies 3 | . . 3 . Largest Group 3 | . . 3 . Highest-Rated Group 40 | . . 40 . Highest-Rated Ally 16 | . . 16 . Total Orders . | . . . . Ally Attacks 5 | . . 5 . Total Damage 23 | . . 23 . Kills 1 | . . 1 . Allies Corrupted . | . . . . Allies Melted . | . . . . Intel | -11 -10 -10 -9 ------- Run | Yrd Mat Min Mat Active Infowar (turns) 236 | . . . 236 Sensors 236 | . . . 236 ECM 6 | . . . 6 Robot Analysis Total . | . . . . Derelict Logs Recovered . | . . . . Drone Launches . | . . . . Drone Recoveries . | . . . . Exploration | -11 -10 -10 -9 ------------- Run | Yrd Mat Min Mat Turns Passed 1490 | 97 1005 124 264 Spaces Moved 1474 | 77 691 288 418 Core 39 | 35 . . 4 Treads 379 | . 354 . 25 Legs . | . . . . Wheels 91 | 42 49 . . Hover . | . . . . Flight 965 | . 288 288 389 Fastest Speed 31 | 50 37 37 31 Average Speed 75 | 108 109 37 40 Slowest Speed 300 | 150 300 37 160 Overloaded Moves . | . . . . Propulsion Burnouts . | . . . . Robots Hopped 1 | . . . 1 Potential Cave-ins . | . . . . Cave-ins Triggered . | . . . . Exploration Rate (%) 41 | 3 77 39 45 Regions Visited 3 Branch Regions 1 Pre-discovered Areas . | . . . . Known Exits Taken 2 | . 1 1 . Unknown Exits Taken 1 | 1 . . . Scrap Searched 1 | . . 1 . Spaces Dug . | . . . . Terrain Destroyed 46 | . 12 . 34 Melee . | . . . . Projectile 1 | . . . 1 AOE 45 | . 12 . 33 Terrain Rammed . | . . . . Walls Destroyed . | . . . . Machines Disabled . | . . . . Actions | -11 -10 -10 -9 --------- Run | Yrd Mat Min Mat Total 1745 | 88 881 297 479 Wait 128 | . 123 5 . Move 1469 | 76 690 287 416 Hop 1 | . . . 1 Pick Up 11 | 6 3 1 1 Fast Attach 25 | 4 11 . 10 Attach 10 | 2 4 . 4 Detach 1 | . 1 . . Swap 4 | . 2 . 2 Drop 24 | . 17 . 7 Fire 51 | . 28 4 19 Melee 5 | . . . 5 Ram 8 | . 1 . 7 Kick . | . . . . Crush 8 | . 1 . 7 Escape Stasis . | . . . . Rewire . | . . . . Trap . | . . . . Miscellaneous . | . . . . Route ------- -11/Scrapyard -10/Materials (discovered 5 exits: *Mat x3 / *Min / [*Sub]) -10/Mines -9/Materials History --------- Turn | Location | Event 10 | -11/Scrapyard | Discovered new exit (range 16) 98 | -11/Scrapyard | Entered Materials 268 | -10/Materials | Identified exit to Mines 268 | -10/Materials | Identified exit to Materials 300 | -10/Materials | Build established: Mutant 1049 | -10/Materials | Discovered new exit (range 10) 1103 | -10/Materials | Entered Mines 1150 | -10/Mines | Discovered exit to Materials (range 6) 1161 | -10/Mines | Assisted by bots powering up and referring to "LRC-V3" 1227 | -10/Mines | Entered Materials 1227 | -9/Materials | Evolved 2 slots: Propulsion x2 1468 | -9/Materials | Core integrity fell below 50% 1482 | -9/Materials | Core integrity fell below 20% 1491 | -9/Materials | Destroyed by S-10 Pest with Light Assault Rifle Last Messages --------------- S-10 Pest destroyed. Acquired 3 matter. Imp. Treads destroyed. Acquired 4 matter. K-01 Serf collects debris. System corrupted: Matter fused (-6). K-01 Serf collects debris. Lgt. Cannon destroyed. K-01 Serf collects debris. Slammed into Y-45 Defender. K-01 Serf collects debris. Sensor Array destroyed. Slammed into Y-45 Defender. K-01 Serf collects debris. Slammed into Y-45 Defender. Critical hit (Burn: +37). Slammed into Y-45 Defender. K-01 Serf collects debris. Slammed into Y-45 Defender. K-01 Serf collects debris. Map ----- +----------------------------------------------------+ | | | | | | | | | | | | | | | | | | | | | | | | | | | | | | | | | ?????????????????#######?##??????????????????????? | | ?????????????????# ???????????????????????? | | ?????????????????# ???????????????????????? | | ????????##???????# ????????????????????????? | | ???????##T######## ????????????????????????? | | ???????# !# ?????????????????????????? | | ???????# #? ??????????????????????????? | | ???????# [ #??#/###+######"" ""??????????? | | ???????# *=%=####Y ; ?????????????? | | ???????# [ kkY s @ #????????????????????? | | ???????# * ####### #????????????????????? | | ???????# % #?????# #????????????????????? | | ???????# ! #?????#* #????????????????????? | | ??????#########+########k* #????????????????????? | | ?????? =[%= #????????????????????? | | ????? ^ #????????????????????? | | ????""""" #????????????????????? | | """"""" [ != #????????????????????? | | """"""" % #????????????????????? | | """"""" * == ?????????????? | | """"""" +??????????? | | =%### #??????????? | | =#?## ### ##### #??????????? | | ####+#### ##????? #???????????? | | / # #???????? #???????????? | | # """"" / #?????????????????????? | | ##### # """"" # #?????????????????????? | | ????# #?""""??? #?????????????????????? | | ????# #?""""??? #?????????????????????? | | ????# #??""???? #?????????????????????? | | ???## #???????? #?????????????????????? | | #???????? #?????????????????????? | | ########### #???????? #?????????????????????? | | ??????????# #???????? ??????????????????????? | +----------------------------------------------------+ Best States ------------- Heat Dissipation 28 Energy Generation 10 Energy Capacity 250 Matter Stores 279 Matter Capacity 300 Sight Range 16 Robot Scan Range 14 Terrain Scan Density 85 ECM Strength 1 Resistance: KI 20 Resistance: TH 20 Resistance: EX 20 Resistance: EM 20 Resistance: I 20 Resistance: S 20 Resistance: P 20 Evasion (%) 63 Recoil Reduction 2 Offensive Hacking 10 Item Schematics ----------------- None Robot Schematics ------------------ None Fabricated ------------ Nothing Repaired ---------- Nothing Alien Tech Used ----------------- None Achievements -------------- None Challenges ------------ None Game ------ Seed PhasingTechRailgun Manual? 0 Play Time 00:20:56 Cumulative 13.4 hours Start 2025.06.09 @ 21:04:47 End 2025.06.09 @ 21:23:49 Sessions 1 Manual Loads 0 Difficulty Adventurer Special Mode None Game No. 37 Rogue 0 Adventurer 37 Explorer 0 Win Type - Total 0 Types 0/0/0/0/0/0/0/0/0/0 Lore% 15 Gallery% 15 Achievement% 17 Wizard Run 0 Options --------- Layout 1 ASCII 0 Keyboard 0 Movement Arrows Keybinds 0 Fullscreen 1 Font 36/Smallcaps Map View 50x43 Zoom Use 0% Tactical HUD 0 Map Filters NONE Filters NONE Steam 1 RUN: cc1fb989-8d60-4ca5-9617-60cb1a2715f5